bitfinex/quotes_ETHUSD_20241204
["timestamp","ask_amount","ask_price","bid_price","bid_amount"]
[1733329513429,1.4114,3775.5,3774.8,2.64913]
[1733329513624,1.4114,3775.5,3774.2,2.6495]
[1733329513625,1.4114,3775.5,3774.7,3.0]
[1733329513826,1.4114,3775.5,3774.5,3.0]
[1733329514040,1.4114,3777.6,3775.4,3.0]
[1733329514242,0.54218733,3776.2,3775.7,2.64847]
[1733329514479,1.4114,3777.6,3775.0,3.0]
[1733329514625,1.4114,3777.6,3775.2,2.64883]
[1733329514831,0.53672996,3776.8,3776.0,2.64827]
[1733329515126,0.53672996,3776.8,3774.7,0.2]
[1733329515361,1.4114,3777.6,3775.5,3.0]
[1733329515543,0.160754,3777.5,3776.9,2.64765]
[1733329515773,0.160754,3777.5,3776.5,3.0]
[1733329516121,0.23606525,3779.5,3776.5,3.0]
[1733329516122,1.4114,3779.2,3777.9,2.64696]
[1733329516379,1.4114,3779.2,3778.2,2.64675]
[1733329516739,1.4114,3779.2,3777.6,5.64715]
[1733329516740,0.53031887,3779.1,3777.8,3.0]
[1733329516986,0.53031887,3779.1,3777.6,2.64713]
[1733329517292,0.53031887,3779.1,3778.2,2.64674]
[1733329517490,0.19417189,3779.0,3778.3,2.64668]
[1733329517643,0.19417189,3779.0,3778.4,2.64659]
[1733329517848,0.19417189,3779.0,3777.7,3.0]
[1733329518073,0.19417189,3779.0,3778.4,2.6466]
[1733329518277,0.52000835,3778.9,3777.7,3.0]
[1733329518480,0.52000835,3778.9,3777.2,2.64745]
[1733329518665,0.52000835,3778.9,3776.1,3.0]
[1733329518989,1.4114,3778.8,3776.1,3.0]
[1733329519173,0.16055719,3778.7,3777.3,2.64738]
[1733329519358,0.16055719,3778.7,3777.4,2.64727]
[1733329519562,0.53540856,3778.0,3777.5,2.64723]
[1733329519864,0.16055719,3778.7,3777.1,3.0]
[1733329519865,3.33,3777.5,3777.1,3.0]
[1733329520046,3.33,3777.5,3776.0,2.64829]
[1733329520047,3.33,3777.5,3777.3,3.0]
[1733329520246,0.333,3777.4,3776.7,3.0]
[1733329520445,0.333,3777.4,3775.7,1.5602]
[1733329520446,1.7444,3777.4,3775.7,1.5602]
[1733329520664,1.7444,3777.4,3777.1,2.64748]
[1733329520863,3.33,3777.5,3775.0,4.3089]
[1733329521084,3.33,3777.5,3775.3,0.2]
[1733329521295,3.33,3777.5,3775.5,0.2]
[1733329521498,3.33,3777.5,3777.4,2.64732]
[1733329522410,3.33,3777.5,3777.4,5.64732]
[1733329522552,0.04752312,3778.9,3777.1,4.26529]
[1733329522553,0.04752312,3778.9,3778.8,5.64634]
[1733329523233,0.04752312,3778.9,3778.7,3.0]
[1733329523351,0.04752312,3778.9,3778.8,3.0]
[1733329523550,0.04752312,3778.9,3777.5,0.1]
[1733329523551,0.04752312,3778.9,3777.5,3.0]
[1733329523752,0.04752312,3778.9,3776.7,0.2]
[1733329523753,1.4114,3778.8,3777.7,3.0]
[1733329523979,1.4114,3778.8,3776.4,1.6365]
[1733329523980,0.14589231,3778.7,3777.9,3.0]
[1733329524167,0.14589231,3778.7,3777.8,3.0]
[1733329524381,0.14589231,3778.7,3777.0,3.0]
[1733329524563,0.14589231,3778.7,3776.4,1.6365]
[1733329524750,0.5181561,3777.9,3775.6,1.5499]
[1733329524953,0.14589231,3778.7,3776.9,2.64765]
[1733329525146,0.14589231,3778.7,3777.0,2.64758]
[1733329525494,0.14589231,3778.7,3775.8,2.64844]
[1733329525846,1.4114,3778.6,3777.0,2.64759]
[1733329526164,1.4114,3778.6,3777.5,2.64724]
[1733329526366,0.15572923,3778.5,3777.5,2.64724]
[1733329526685,0.52261885,3778.4,3777.0,2.64755]
[1733329526865,0.52261885,3778.4,3776.6,1.5072]
[1733329527196,1.4114,3778.6,3776.8,3.0]
[1733329527409,1.4114,3778.6,3776.6,1.5072]
[1733329527545,1.4114,3778.6,3777.2,3.0]
[1733329527751,0.14114,3778.5,3777.5,3.0]
[1733329527976,0.14114,3778.5,3777.2,3.0]
[1733329528244,0.14114,3778.5,3775.7,0.17499]
[1733329528245,1.4114,3778.4,3775.7,0.17499]
[1733329528548,1.5114,3778.2,3775.3,1.618]
[1733329528748,1.4114,3778.0,3774.9,2.64907]
[1733329528973,1.4114,3777.8,3774.7,1.5393]
[1733329529179,1.4114,3777.8,3775.8,2.64837]
[1733329529548,1.4114,3777.6,3774.8,2.64914]
[1733329529817,0.52357128,3776.5,3776.0,2.64826]
[1733329529953,0.52357128,3776.5,3775.8,2.64844]
[1733329530146,0.52357128,3776.5,3775.5,2.64862]
[1733329530350,0.52357128,3776.5,3775.6,2.64855]
[1733329530351,1.4114,3776.4,3775.6,2.64855]
[1733329530551,1.4114,3776.4,3775.3,2.64873]
[1733329530834,1.4114,3776.4,3774.9,2.64905]
[1733329530835,0.19349713,3776.3,3774.9,2.64905]
[1733329530984,0.19349713,3776.3,3775.0,2.649]
[1733329531305,1.4114,3776.2,3774.5,2.64934]
[1733329531465,1.4114,3776.2,3773.8,2.64984]
[1733329531664,1.4114,3776.2,3773.7,2.6499]
[1733329531868,0.19349713,3776.3,3772.6,0.4143602]
[1733329531869,1.4114,3776.0,3772.6,0.6143602]
[1733329532068,1.4114,3776.0,3773.1,2.65034]
[1733329532294,1.4114,3776.0,3772.8,2.65055]
[1733329532498,1.4114,3775.0,3772.8,2.65055]
[1733329532798,1.4114,3775.0,3772.5,0.2]
[1733329533009,1.4114,3774.8,3772.4,0.3]
[1733329533152,1.4114,3774.8,3773.9,5.64975]
[1733329533496,1.4114,3774.8,3773.4,2.65007]
[1733329533804,1.4114,3774.8,3772.5,2.65076]
[1733329533948,1.4114,3774.8,3772.4,0.2]
[1733329534156,0.16068161,3774.7,3773.9,2.64973]
[1733329534482,0.16068161,3774.7,3772.3,1.8042]
[1733329534712,0.16068161,3774.7,3772.7,3.0]
[1733329534915,0.16068161,3774.7,3774.1,2.6496]
[1733329535120,0.16068161,3774.7,3773.9,2.64976]
[1733329535431,1.4114,3774.8,3773.5,3.0]
[1733329535581,1.4114,3774.8,3774.3,3.0]
[1733329535784,1.4114,3774.8,3773.7,3.0]
[1733329536000,1.4114,3774.8,3772.2,2.65094]
[1733329536334,1.4114,3774.7,3772.2,2.65095]
[1733329536527,1.4114,3774.7,3771.7,1.5539]
[1733329536528,1.4114,3774.5,3771.1,2.6517]
[1733329536684,1.4114,3774.5,3771.0,1.5539]
[1733329536880,0.77043392,3774.6,3770.5,2.65211]
[1733329536881,1.4114,3772.9,3770.5,3.06665368]
[1733329537180,1.4114,3772.9,3771.1,2.65167]
[1733329537382,1.4114,3772.9,3770.6,2.65209]
[1733329537594,1.4114,3772.9,3771.9,2.65115]
[1733329537595,0.1935253,3772.8,3771.9,2.65115]
[1733329537797,0.1935253,3772.8,3770.5,2.65211]
[1733329537798,0.1935253,3772.8,3771.7,2.6513]
[1733329538038,0.1935253,3772.8,3770.8,2.65195]
[1733329538241,0.1935253,3772.8,3771.8,2.65123]
[1733329538380,0.1935253,3772.8,3770.5,2.65216]
[1733329538702,0.16049253,3772.7,3771.9,2.65115]
[1733329538902,0.52879248,3772.4,3771.4,2.6515]
[1733329539112,0.52879248,3772.4,3770.4,2.65219]
[1733329539113,0.52879248,3772.4,3771.5,2.65145]
[1733329539286,0.52879248,3772.4,3770.2,1.6017]
[1733329539687,0.52879248,3772.4,3770.8,2.65193]
[1733329539688,1.4114,3772.3,3770.8,2.65193]
[1733329539932,0.19401925,3772.2,3771.4,2.65152]
[1733329540230,0.19401925,3772.2,3770.0,2.65251]
[1733329540398,1.4114,3772.3,3771.8,2.65124]
[1733329540597,1.4114,3772.3,3771.9,2.65116]
[1733329540834,1.4114,3772.3,3770.8,2.65192]
[1733329540835,1.4114,3772.3,3771.7,2.65129]
[1733329541000,1.4114,3772.3,3770.3,2.65226]
[1733329541001,1.4114,3772.3,3771.3,3.0]
[1733329541186,0.19401925,3772.2,3771.6,2.65133]
[1733329541385,0.19401925,3772.2,3770.8,3.0]
[1733329541595,1.4114,3772.3,3771.9,2.65116]
[1733329541995,1.4114,3772.3,3772.2,2.65097]
[1733329542227,1.4114,3772.3,3771.8,2.65124]
[1733329542228,1.4114,3772.3,3771.9,3.0]
[1733329542441,1.4114,3772.3,3771.5,2.65142]
[1733329542602,1.4114,3772.3,3771.1,3.0]
[1733329542784,0.19352084,3772.2,3771.1,2.65171]
[1733329542991,0.19352084,3772.2,3769.1,0.1]
[1733329542992,1.4114,3772.1,3769.5,2.65285]
[1733329543233,1.4114,3772.1,3769.0,2.65317]
[1733329543442,1.4114,3772.1,3770.0,2.65251]
[1733329543598,1.4114,3772.1,3770.1,2.6524]
[1733329543599,1.5114,3772.1,3770.1,2.6524]
[1733329543926,1.4114,3771.9,3768.6,2.6535]
[1733329544140,1.4114,3771.9,3768.4,1.6197]
[1733329544286,1.4114,3770.3,3768.5,2.65357]
[1733329544491,1.4114,3770.3,3770.1,2.65241]
[1733329544739,1.4114,3770.3,3768.6,2.6535]
[1733329544946,1.4114,3770.3,3770.1,2.65241]
[1733329545231,1.4114,3770.3,3769.2,2.65304]
[1733329545416,1.4114,3770.3,3768.7,2.65343]
[1733329545614,1.4114,3770.3,3770.1,2.65244]
[1733329545860,1.4114,3770.3,3769.8,2.6526]
[1733329546135,1.4114,3770.3,3768.4,1.6197]
[1733329546136,1.4114,3770.3,3768.9,2.65329]
[1733329546338,1.4114,3770.3,3769.9,2.65254]
[1733329546483,1.4114,3770.3,3770.2,2.65237]
[1733329546832,0.17049208,3772.0,3768.4,1.8197]
[1733329546833,1.4114,3770.9,3769.5,3.0]
[1733329547149,1.4114,3770.9,3770.4,2.6522]
[1733329547300,1.4114,3770.9,3768.7,2.65343]
[1733329547301,0.52544058,3770.8,3768.5,5.30714]
[1733329547505,0.52544058,3770.8,3768.9,3.55]
[1733329547813,0.52544058,3770.8,3770.7,2.65202]
[1733329548189,0.52544058,3770.8,3770.1,3.0]
[1733329548190,1.4114,3771.9,3770.3,3.55]
[1733329548533,1.4114,3771.9,3771.3,2.65157]
[1733329548827,1.4114,3771.9,3771.8,2.65125]
[1733329549602,1.4114,3771.9,3770.8,2.6519]
[1733329549603,1.4114,3774.1,3772.6,2.65068]
[1733329549806,1.4114,3773.9,3772.1,2.65101]
[1733329550108,1.4114,3773.9,3773.1,2.6503]
[1733329550312,0.53647345,3773.5,3772.0,3.0]
[1733329550533,0.53647345,3773.5,3773.4,2.65012]
[1733329550744,1.4114,3773.9,3773.2,2.65022]
[1733329550921,1.4114,3774.7,3773.8,2.64984]
[1733329551132,1.4114,3774.7,3772.2,0.02460694]
[1733329551133,1.95110905,3774.7,3773.6,3.0]
[1733329551455,1.95110905,3774.7,3773.1,3.0]
[1733329551655,1.95110905,3774.7,3773.2,3.0]
[1733329551971,1.95110905,3774.7,3773.7,3.0]
[1733329552101,1.95110905,3774.7,3772.8,0.02649628]
[1733329552102,1.4114,3774.7,3774.6,2.64928]
[1733329552307,1.4114,3774.7,3772.8,0.2]
[1733329552308,1.4114,3776.9,3775.0,2.64899]
[1733329552534,1.4114,3776.6,3774.0,3.0]
[1733329552732,1.4114,3776.6,3774.0,2.6497]
[1733329552952,1.4114,3776.6,3775.9,2.64836]
[1733329553119,1.4114,3776.6,3774.7,3.0]
[1733329553120,1.4114,3776.6,3775.5,2.64864]
[1733329553451,1.4114,3776.6,3775.0,2.64899]
[1733329553452,0.53658471,3776.1,3775.3,2.64878]
[1733329553822,0.53658471,3776.1,3775.3,2.64873]
[1733329554025,0.53658471,3776.1,3775.1,2.64891]
[1733329554026,1.4114,3776.0,3775.1,2.64891]
[1733329554226,1.4114,3776.0,3773.7,4.5419]
[1733329554227,0.19479847,3775.9,3774.1,3.0]
[1733329554750,0.19479847,3775.9,3775.1,2.64887]
[1733329554955,0.19479847,3775.9,3773.8,3.0]
[1733329555161,0.19479847,3775.9,3775.5,2.64861]
[1733329555376,0.19479847,3775.9,3774.0,3.0]
[1733329555510,1.4114,3776.0,3774.5,2.64933]
[1733329556014,1.4114,3777.1,3776.2,2.64813]
[1733329556231,1.4114,3777.1,3776.3,2.64806]
[1733329556735,1.4114,3777.1,3774.8,2.64914]
[1733329556944,1.4114,3776.5,3774.8,2.64914]
[1733329557111,1.4114,3776.5,3774.8,2.6491]
[1733329557306,1.4114,3776.5,3774.6,2.64923]
[1733329557511,1.4114,3776.3,3773.2,1.5859]
[1733329557707,1.4114,3776.1,3774.2,2.64955]
[1733329557964,1.4114,3775.0,3771.4,1.5859]
[1733329558144,1.4114,3775.0,3771.4,1.6859]
[1733329558344,0.53794987,3774.8,3773.7,2.64988]
[1733329558548,0.53794987,3774.8,3774.1,2.64958]
[1733329558712,0.53794987,3774.8,3772.7,1.6175]
[1733329558713,0.53794987,3774.8,3774.3,2.64947]
[1733329558910,0.53794987,3774.8,3772.7,1.6439971]
[1733329558911,0.19493499,3774.7,3773.1,2.65034]
[1733329559121,1.4114,3775.0,3774.2,2.64952]
[1733329559323,1.4114,3775.0,3772.7,1.6175]
[1733329559525,1.93976443,3775.0,3774.4,2.64941]
[1733329559726,1.93976443,3775.0,3773.2,3.0]
[1733329559956,1.93976443,3775.0,3773.4,3.0]
[1733329560159,0.19397644,3774.9,3772.7,2.65055]
[1733329560362,0.52836443,3775.0,3772.3,0.1]
[1733329560669,0.52772893,3775.3,3771.9,1.556]
[1733329560961,0.52772893,3775.3,3773.7,2.64988]
[1733329561168,0.52772893,3775.3,3773.8,2.64984]
[1733329561318,1.4114,3775.2,3770.3,1.23064566]
[1733329561522,0.19391289,3775.1,3774.7,2.6492]
[1733329562221,1.4114,3775.2,3775.0,2.64897]
[1733329562583,0.142464,3777.0,3775.4,2.64871]
[1733329562584,1.4114,3775.8,3775.4,2.64871]
[1733329562947,1.4114,3775.8,3775.7,2.64851]
[1733329563245,1.4114,3776.9,3775.0,2.649]
[1733329563449,0.53927382,3776.7,3774.8,3.0]
[1733329563620,1.4114,3776.9,3774.5,1.5989]
[1733329563825,1.4114,3776.9,3775.2,3.0]
[1733329564022,1.4114,3776.9,3776.7,2.64779]
[1733329564254,0.01324,3777.2,3776.7,2.64779]
[1733329564416,0.01324,3777.2,3777.0,2.64754]
[1733329564825,0.01324,3777.2,3775.1,0.2]
[1733329564826,0.32837374,3777.2,3775.6,3.0]
[1733329565149,1.4114,3777.1,3775.1,3.0]
[1733329565352,1.94569009,3777.1,3775.6,2.64858]
[1733329565652,1.94569009,3777.1,3774.9,2.64907]
[1733329565901,1.94569009,3777.1,3773.6,0.2]
[1733329565902,1.4114,3777.0,3773.2,1.5454]
[1733329566184,1.4114,3777.0,3773.6,2.64998]
[1733329566185,1.4114,3776.2,3773.6,2.64998]
[1733329566481,1.4114,3776.2,3775.1,2.64891]
[1733329566781,1.4114,3776.2,3773.5,0.1]
[1733329566983,1.4114,3776.2,3774.4,2.64942]
[1733329567184,1.4114,3776.2,3773.9,2.64977]
[1733329567388,1.4114,3776.0,3774.0,2.64967]
[1733329567668,1.4114,3776.0,3771.4,2.65149]
[1733329567669,1.4114,3774.9,3771.4,2.65149]
[1733329567878,1.4114,3774.9,3771.2,1.6078]
[1733329567879,1.9614,3774.3,3771.2,1.6078]
[1733329568081,0.55,3774.2,3772.2,2.65094]
[1733329568231,0.55,3774.2,3771.2,1.6078]
[1733329568232,1.4114,3773.4,3771.2,1.6078]
[1733329568453,1.4114,3773.4,3772.3,2.65086]
[1733329568454,0.19500856,3773.3,3772.3,2.65086]
[1733329568778,0.19500856,3773.3,3771.3,0.16078]
[1733329569008,0.19500856,3773.3,3769.5,0.1]
[1733329569009,0.19500856,3773.3,3770.7,2.65202]
[1733329569155,0.19500856,3773.3,3772.2,2.65093]
[1733329569499,1.4114,3773.4,3770.1,0.71461173]
[1733329569500,1.4114,3773.4,3773.3,2.6502]
[1733329569795,1.4114,3774.3,3772.5,2.65076]
[1733329569998,1.4114,3774.3,3774.1,2.64959]
[1733329570349,1.4114,3774.3,3773.2,5.65021]
[1733329570600,1.4114,3774.3,3773.1,2.65032]
[1733329570800,0.14114,3774.2,3772.3,1.5688]
[1733329570961,1.4114,3774.3,3772.3,1.5688]
[1733329570962,1.4114,3774.3,3772.4,0.02171098]
[1733329571165,1.4114,3774.3,3774.2,2.64956]
[1733329572309,1.4114,3775.0,3774.9,2.64907]
[1733329572466,1.4114,3776.0,3774.2,2.64956]
[1733329572798,1.4114,3776.0,3775.8,2.64843]
[1733329572997,1.4114,3776.0,3775.6,2.64857]
[1733329573300,1.4114,3776.0,3774.6,2.64921]
[1733329573467,1.4114,3776.0,3774.4,3.0]
[1733329574355,1.4114,3776.0,3775.9,2.64837]
[1733329574555,9.99,3777.5,3775.9,2.64837]
[1733329574556,1.4114,3777.1,3776.2,2.64809]
[1733329574820,1.4114,3777.1,3774.9,3.0]
[1733329574821,0.142464,3777.0,3774.9,3.0]
[1733329574978,0.142464,3777.0,3776.8,2.64772]
[1733329575156,0.142464,3777.0,3775.0,0.02648258]
[1733329575157,1.4114,3777.1,3777.0,2.6476]
[1733329575357,9.99,3777.5,3777.1,2.64753]
[1733329575754,9.99,3777.5,3776.8,2.64769]
[1733329575966,9.99,3777.5,3775.7,2.64848]
[1733329575967,9.99,3777.5,3775.8,2.64838]
[1733329576164,1.4114,3777.1,3774.7,1.6441]
[1733329576365,1.4114,3776.9,3774.8,0.01832353]
[1733329576718,1.4114,3776.9,3776.0,2.64829]
[1733329576864,1.4114,3776.9,3774.6,2.64928]
[1733329577066,1.4114,3776.9,3774.9,1.5599]
[1733329577307,1.4114,3776.9,3775.0,0.01598759]
[1733329577465,1.4114,3776.9,3776.7,2.64781]
[1733329577816,1.4114,3776.9,3775.0,0.01598759]
[1733329577817,3.71140008,3777.1,3775.7,0.02647875]
[1733329578110,0.02647875,3777.0,3773.7,1.5599]
[1733329578482,0.02647875,3777.0,3774.7,2.64921]
[1733329578795,0.02647875,3777.0,3773.8,2.64984]
[1733329578796,0.54047327,3775.8,3774.8,2.60161688]
[1733329578981,0.02647875,3775.7,3774.8,2.60161688]
[1733329579464,0.02647875,3775.7,3773.8,2.64984]
[1733329579684,0.02647875,3775.7,3772.5,0.1]
[1733329579685,0.57647875,3775.7,3773.0,1.6664]
[1733329579883,0.57647875,3775.7,3773.5,2.65005]
[1733329580100,0.57647875,3775.7,3772.4,1.6664]
[1733329580101,0.55,3775.5,3772.4,1.6664]
[1733329580309,3.71140008,3773.8,3772.5,0.08303501]
[1733329580614,0.53020174,3773.1,3772.5,0.08303501]
[1733329580816,0.57647875,3773.0,3772.5,0.08303501]
[1733329580998,0.55,3773.0,3771.3,0.41450616]
[1733329581200,0.77647875,3773.0,3771.3,0.41450616]
[1733329581396,0.55,3772.8,3771.3,0.41450616]
[1733329581628,0.02647875,3772.7,3770.5,2.65214]
[1733329581843,0.02647875,3772.7,3769.9,2.65259]
[1733329582132,0.02647875,3772.7,3769.7,1.62]
[1733329582286,0.02647875,3772.7,3770.8,2.65191]
[1733329582481,0.02647875,3772.7,3770.5,2.6521]
[1733329582729,0.02647875,3772.7,3769.7,1.62]
[1733329582882,0.02647875,3772.7,3769.8,0.162]
[1733329583083,0.52294813,3772.2,3769.8,0.162]
[1733329583381,0.52294813,3772.2,3770.8,2.6519]
[1733329583382,0.02647875,3772.1,3770.8,2.6519]
[1733329583585,0.02647875,3772.1,3770.6,2.65203]
[1733329583823,0.02647875,3772.1,3769.8,0.162]
[1733329583824,0.02647875,3772.1,3770.7,2.65201]
[1733329584030,0.02647875,3772.1,3769.8,0.162]
[1733329584031,0.02647875,3772.1,3771.0,2.65177]
[1733329584225,0.02647875,3772.1,3769.8,0.162]
[1733329584226,0.02647875,3772.7,3771.1,2.65173]
[1733329584429,0.02647875,3772.7,3771.2,2.65166]
[1733329584643,0.51877049,3772.3,3769.8,0.162]
[1733329584788,0.02647875,3772.2,3770.5,2.65213]
[1733329584989,0.57647875,3772.2,3770.2,2.65236]
[1733329585188,0.57647875,3772.2,3769.1,1.5193]
[1733329585189,0.02647875,3772.2,3769.1,1.5193]
[1733329585419,0.02647875,3772.2,3770.5,2.65212]
[1733329585735,0.02647875,3772.2,3769.1,1.5193]
[1733329585736,0.54104215,3771.8,3771.2,2.65167]
[1733329585899,0.02647875,3772.4,3769.3,0.1]
[1733329586099,0.52232335,3772.6,3769.8,0.1]
[1733329586434,0.02647875,3773.8,3771.9,2.65116]
[1733329586636,0.02647875,3773.8,3772.4,2.6508]
[1733329586637,0.51887655,3773.0,3772.4,2.6508]
[1733329586790,0.02647875,3773.8,3772.1,2.65099]
[1733329586995,0.02647875,3773.8,3770.9,2.65188]
[1733329587229,0.02647875,3774.2,3771.1,3.0]
[1733329587428,0.02647875,3774.2,3771.3,3.0]
[1733329587585,0.51999013,3773.2,3771.4,2.65147]
[1733329587795,0.02647875,3773.1,3770.4,3.0]
[1733329588032,0.02647875,3773.1,3771.9,2.65118]
[1733329588232,0.02647875,3773.1,3770.7,2.65202]
[1733329588543,0.02647875,3773.1,3770.5,3.0]
[1733329588693,0.02647875,3773.1,3771.4,2.65152]
[1733329589002,0.02647875,3773.1,3770.2,1.5451]
[1733329589205,0.02647875,3773.1,3770.8,2.65195]
[1733329589407,0.51999013,3773.2,3771.0,2.65175]
[1733329589615,0.51999013,3773.2,3771.3,3.0]
[1733329589808,0.02647875,3773.1,3772.6,2.65067]
[1733329590010,0.02647875,3773.1,3771.3,5.6516]
[1733329590222,0.02647875,3774.2,3772.9,2.65043]
[1733329590392,0.02647875,3774.2,3771.8,3.0]
[1733329590393,0.54123546,3774.4,3771.8,3.0]
[1733329590593,0.02647875,3775.5,3773.4,2.65011]
[1733329590795,1.060721,3775.8,3772.8,3.0]
[1733329590796,0.52920094,3774.9,3773.2,2.65027]
[1733329591029,0.02647875,3774.8,3771.7,1.6192]
[1733329591243,0.02647875,3774.8,3772.1,3.0]
[1733329591410,0.02647875,3774.8,3772.2,0.02649946]
[1733329591610,0.27140015,3775.6,3772.2,0.02649946]
[1733329591611,0.27140015,3775.6,3774.2,2.64955]
[1733329591907,0.52135464,3775.1,3774.3,2.64946]
[1733329592124,0.02647875,3775.5,3772.9,1.6192]
[1733329592125,0.02647875,3775.5,3773.3,3.0]
[1733329592322,0.27140015,3775.6,3774.7,2.6492]
[1733329592528,0.27140015,3775.6,3773.3,2.65016]
[1733329592529,0.5256489,3775.5,3773.5,5.3001]
[1733329592743,0.5256489,3775.5,3773.4,3.0]
[1733329592944,0.5256489,3775.5,3773.8,2.64984]
[1733329593096,0.5256489,3775.5,3774.8,2.64913]
[1733329593299,0.02647875,3775.4,3774.6,2.64925]
[1733329593598,0.02647875,3776.8,3774.1,3.0]
[1733329593799,0.53725929,3775.9,3774.6,2.64926]
[1733329594006,0.53498269,3775.9,3773.7,3.0]
[1733329594344,0.02647875,3776.8,3773.9,2.64977]
[1733329594495,0.54229577,3776.5,3774.4,2.64938]
[1733329594840,0.02647875,3776.4,3774.6,2.64927]
[1733329595009,0.02647875,3776.4,3774.7,2.64916]
[1733329595341,0.02647875,3776.4,3772.4,4.4005]
[1733329595342,0.02647875,3776.4,3774.1,2.64956]
[1733329595555,0.55,3776.1,3773.4,2.65009]
[1733329595844,3.55,3775.7,3772.1,2.65104]
[1733329596042,3.55,3775.7,3770.8,0.624093]
[1733329596043,0.55,3774.2,3771.4,2.65148]
[1733329596209,0.55,3774.2,3770.7,0.2]
[1733329596210,0.02647875,3774.1,3772.2,2.65095]
[1733329596620,0.02647875,3774.1,3770.9,0.02650841]
[1733329596826,0.02647875,3774.1,3772.4,2.65083]
[1733329597040,0.02647875,3774.1,3770.7,0.1]
[1733329597206,0.02647875,3774.1,3772.1,2.65101]
[1733329597207,0.5167029,3773.7,3772.1,2.65101]
[1733329597407,0.57647875,3773.6,3771.7,2.6513]
[1733329597606,0.57647875,3773.6,3772.2,2.65094]
[1733329597859,0.57647875,3773.6,3772.3,2.65089]
[1733329598000,0.57647875,3773.6,3772.7,2.6506]
[1733329598196,0.5167029,3773.7,3773.1,2.65031]
[1733329598400,0.02647875,3774.5,3773.3,2.65017]
[1733329598632,0.02647875,3774.5,3771.8,1.6161]
[1733329598801,0.536517,3774.1,3772.8,2.65048]
[1733329598995,0.02647875,3774.0,3773.3,2.65019]
[1733329599230,0.02647875,3774.0,3772.5,2.65076]
[1733329599397,0.02647875,3774.0,3773.0,2.65038]
[1733329599608,0.02647875,3774.0,3772.1,3.0]
[1733329599935,0.51903397,3774.5,3774.1,2.64962]
[1733329600096,0.02647875,3775.1,3774.1,2.64961]
[1733329600301,0.02647875,3775.8,3772.9,3.0]
[1733329600501,0.02647875,3775.8,3774.6,2.64926]
[1733329600750,0.52268952,3775.4,3772.6,0.01902369]
[1733329600901,0.52268952,3775.4,3774.8,2.64914]
[1733329601247,7.88738574,3777.2,3774.0,3.0]
[1733329601248,0.54080829,3776.0,3774.0,3.0]
[1733329601561,0.03971875,3777.2,3775.0,2.649]
[1733329601701,0.01879847,3777.1,3775.1,1.59833334]
[1733329601901,0.02647875,3777.0,3776.0,2.64829]
[1733329602104,0.52618612,3776.4,3775.9,2.64834]
[1733329602452,0.02647875,3777.0,3772.7,0.1]
[1733329602616,0.40347048,3776.9,3774.1,2.6496]
[1733329602820,0.51680886,3776.1,3774.4,2.64942]
[1733329603053,0.02647875,3776.0,3774.2,2.64956]
[1733329603256,0.02647875,3776.0,3775.0,2.64896]
[1733329603545,0.57647875,3776.0,3773.0,1.5585]
[1733329603745,0.57647875,3776.0,3773.5,2.65005]
[1733329603913,0.57647875,3776.0,3774.4,2.64936]
[1733329604248,0.02647875,3776.0,3773.1,2.6503]
[1733329604451,0.55,3776.3,3773.3,5.3004]
[1733329604600,0.02647875,3776.2,3774.5,2.64932]
[1733329604800,0.55,3775.0,3774.3,2.64947]
[1733329605149,0.02647875,3774.9,3774.3,2.64947]
[1733329605302,0.55,3775.0,3773.1,2.6503]
[1733329605303,0.55,3775.0,3774.4,2.64941]
[1733329605705,0.55,3775.0,3774.6,2.64928]
[1733329606015,0.55,3775.0,3773.2,3.0]
[1733329606016,0.02647875,3774.9,3773.3,1.5109]
[1733329606168,0.2723758,3776.8,3773.7,2.64991]
[1733329606169,0.02647875,3776.0,3773.7,2.64991]
[1733329606488,0.02647875,3776.7,3773.8,3.0]
[1733329606765,0.02647875,3776.7,3775.8,2.64842]
[1733329606977,6.66,3777.4,3774.4,3.0]
[1733329606978,6.66,3777.4,3774.8,3.0]
[1733329607123,6.66,3777.4,3775.0,3.0]
[1733329607324,2.012564,3777.2,3775.4,2.64872]
[1733329607568,2.012564,3777.2,3776.8,2.64774]
[1733329607772,0.52556152,3777.0,3776.9,2.64767]
[1733329607925,2.012564,3777.2,3777.1,2.64753]
[1733329608375,0.01324,3777.2,3777.1,2.64753]
[1733329608585,0.01324,3777.2,3776.5,2.64789]
[1733329608875,0.01324,3777.2,3775.8,4.6325]
[1733329609020,0.01324,3777.2,3775.7,2.64849]
[1733329609021,0.01324,3777.2,3776.0,3.0]
[1733329609375,0.03971875,3777.2,3775.5,3.0]
[1733329609671,2.01521187,3777.2,3776.6,2.64787]
[1733329609917,2.01521187,3777.2,3776.1,2.64821]
[1733329610068,2.01521187,3777.2,3775.9,3.0]
[1733329610265,2.01521187,3777.2,3776.9,2.64764]
[1733329610502,2.01521187,3777.2,3775.7,3.0]
[1733329610503,2.01521187,3777.2,3777.0,2.64757]
[1733329610808,0.02647875,3777.1,3775.7,2.64848]
[1733329611131,0.02647875,3777.1,3773.2,1.5516]
[1733329611262,0.02647875,3777.1,3773.5,0.1]
[1733329611462,0.02647875,3777.1,3775.7,2.6485]
[1733329611463,0.52836946,3776.7,3775.7,2.6485]
[1733329611805,0.01324,3777.2,3774.4,1.5516]
[1733329612113,0.55,3777.1,3774.5,0.15516]
[1733329612267,2.5418871,3777.2,3775.0,3.0]
[1733329612463,2.5418871,3777.2,3776.8,2.64774]
[1733329612670,2.012564,3777.2,3777.1,2.64753]
[1733329612867,2.012564,3777.2,3776.5,2.64794]
[1733329613079,2.012564,3777.2,3776.9,2.64766]
[1733329613080,0.86990428,3777.1,3776.9,2.64766]